fUSD/lending_fUSD_20240407
["ID","MTS","AMOUNT","RATE_DAILY","PERIOD"]
[321761124,1712503831730,-351.0,0.0001927,2]
[321761125,1712503831739,-155.44,0.00019345,2]
[321761127,1712503831748,-1312.89,0.00019389,2]
[321761129,1712503831757,-993.0470656,0.00019397,2]
[321761130,1712503831766,-2901.68,0.00019406,2]
[321761132,1712503831775,-242.91,0.00019416,2]
[321761134,1712503831784,-155.44,0.00019446,2]
[321761136,1712503831794,-150.0,0.00019497,2]
[321761137,1712503831804,-499.99,0.00019498,2]
[321761138,1712503831814,-3793.28801808,0.00019499,2]
[321761140,1712503831824,-349.8,0.00019518,2]
[321761141,1712503831835,-155.44,0.00019546,2]
[321761143,1712503831844,-12203.81980412,0.00019608,2]
[321761144,1712503831854,-993.0470656,0.00019611,2]
[321761145,1712503831863,-168.23,0.00019619,2]
[321761146,1712503831873,-155.44,0.00019646,2]
[321761147,1712503831883,-155.44,0.00019746,2]
[321761148,1712503831893,-244.39,0.00019811,2]
[321761149,1712503831902,-993.0470656,0.00019826,2]
[321761150,1712503831912,-155.44,0.00019847,2]
[321761151,1712503831920,-155.44,0.00019947,2]
[321761152,1712503831929,-159.976424,0.0002,2]
[321761153,1712503831939,-326.50550398,0.00020015,2]
[321761154,1712503831949,-300.0,0.00020016,2]
[321761155,1712503831958,-993.0470656,0.00020041,2]
[321761156,1712503831968,-155.44,0.00020047,2]
[321761157,1712503831976,-155.44,0.00020148,2]
[321761158,1712503831986,-155.44,0.00020248,2]
[321761159,1712503831995,-993.0470656,0.00020256,2]
[321761160,1712503832005,-872.0,0.00020364,2]
[321761161,1712503832014,-993.0470656,0.0002047,2]
[321761162,1712503832024,-1167.70204627,0.00020482,2]
[321761163,1712503832033,-2485.1183,0.00020499,2]
[321761164,1712503832042,-283.48,0.00020517,2]
[321761165,1712503832052,-1167.70204627,0.00020604,2]
[321761166,1712503832062,-993.0470656,0.00020685,2]
[321761167,1712503832071,-15535.13123147,0.00020698,2]
[321761168,1712503832081,-15535.13123139,0.0002072,2]
[321761169,1712503832090,-15535.13123139,0.00020743,2]
[321761170,1712503832100,-15535.13123139,0.00020765,2]
[321761171,1712503832110,-15535.13123139,0.00020788,2]
[321761172,1712503832120,-7500.0,0.00020798,2]
[321761173,1712503832129,-164.86350451,0.00020798,2]
[321761174,1712503832143,-708.98227451,0.00020798,2]
[321761175,1712503832155,-235.85860672,0.00020798,2]
[321761176,1712503832164,-1536.5007,0.00020798,2]
[321761177,1712503832174,-884.92650443,0.00020798,2]
[321761178,1712503832186,-151.15639557,0.00020798,2]
[321761179,1712503832196,-707.33982427,0.00020798,2]
[321761180,1712503832208,-14160.95374378,0.00020798,2]
[321761181,1712503832220,-85131.70643195,0.00020798,2]
[321761182,1712503832229,-2500.0,0.00020798,2]
[321761183,1712503832239,-2500.0,0.000208,2]
[321761184,1712503832249,-261.88549966,0.000208,2]
[321761185,1712503832258,-786.17958742,0.000208,2]
[321761186,1712503832268,-180.03213614,0.000208,2]
[321761187,1712503832278,-187.60440634,0.000208,2]
[321761188,1712503832288,-873.84577893,0.00020807,2]
[321761189,1712503832297,-15535.13123139,0.0002081,2]
[321761190,1712503832307,-873.84577893,0.00020817,2]
[321761191,1712503832316,-159.976424,0.00020822,2]
[321761192,1712503832326,-873.84577893,0.00020826,2]
[321761193,1712503832336,-8181.19859887,0.0002083,3]
[321761194,1712503832346,-15535.13123139,0.00020833,2]
[321761195,1712503832356,-873.84577893,0.00020835,2]
[321761196,1712503832366,-873.84577893,0.00020844,2]
[321761197,1712503832375,-261.88549964,0.0002085,2]
[321761198,1712503832384,-786.1795874,0.0002085,2]
[321761199,1712503832394,-187.60440634,0.0002085,2]
[321761200,1712503832405,-873.84577893,0.00020854,2]
[321761201,1712503832415,-15535.13123139,0.00020855,2]
[321761202,1712503832424,-873.84577893,0.00020863,2]
[321761203,1712503832434,-873.84577893,0.00020872,2]
[321761204,1712503832443,-2156.90904818,0.00020877,2]
[321761205,1712503832453,-15535.13123139,0.00020878,2]
[321761206,1712503832462,-873.84577893,0.00020881,2]
[321761207,1712503832472,-873.84577893,0.00020891,2]
[321761208,1712503832482,-15627.85546267,0.00020895,2]
[321761209,1712503832491,-1057.50232524,0.00020896,2]
[321761210,1712503832500,-953.7472112,0.00020896,2]
[321761211,1712503832509,-6206.19967181,0.00020896,2]
[321761212,1712503832519,-500.0,0.00020896,2]
[321761213,1712503832529,-533.66109183,0.00020896,2]
[321761214,1712503832538,-654.64792341,0.00020896,2]
[321761215,1712503832548,-223.89922122,0.00020896,2]
[321761216,1712503832557,-175.03336532,0.00020896,2]
[321761217,1712503832566,-422.58923138,0.00020896,2]
[321761218,1712503832576,-219.12355116,0.00020896,2]
[321761219,1712503832585,-155.23176943,0.00020896,2]
[321761220,1712503832594,-157.54434288,0.00020896,2]
[321761221,1712503832604,-1982.70627118,0.00020896,2]
[321761222,1712503832613,-1830.85054705,0.00020896,2]
[321761223,1712503832622,-532.91680819,0.00020896,2]
[321761224,1712503832632,-905.85508822,0.00020896,2]
[321761225,1712503832641,-4411.11780804,0.00020896,2]
[321761226,1712503832650,-280.00718862,0.00020896,2]
[321761227,1712503832661,-233.20418876,0.00020896,2]
[321761228,1712503832670,-198.02048487,0.00020896,2]
[321761229,1712503832678,-4749.85463134,0.00020896,2]
[321761230,1712503832688,-491.40588618,0.00020896,2]
[321761231,1712503832697,-155.4585308,0.00020896,2]
[321761232,1712503832706,-155.0,0.00020896,2]
[321761233,1712503832715,-1733.42787081,0.00020896,2]
[321761234,1712503832728,-492.35077603,0.00020896,2]
[321761235,1712503832737,-1907.13004437,0.00020896,2]
[321761236,1712503832746,-260.54038049,0.00020896,2]
[321761237,1712503832755,-550.38240893,0.00020896,2]
[321761238,1712503832764,-315.77797662,0.00020897,2]
[321761239,1712503832775,-23283.26082031,0.00020897,2]
[321761240,1712503832784,-195621.50578123,0.00020898,2]
[321761241,1712503832841,-414.86169245,0.00020809,2]
[321761242,1712503832851,-27024.71773032,0.00020898,2]
[321761243,1712503833306,-0.1210995,0.00020898,2]
[321761244,1712503833318,-499.72856,0.00020898,2]
[321761245,1712503833330,-3357.11408227,0.00020898,2]
[321761246,1712503833603,-12493.47990249,0.00020898,2]
[321761247,1712503834115,-13938.59999999,0.00020898,2]
[321761275,1712503837612,-2797.86606884,0.00020781,2]
[321761276,1712503837621,-150482.09880892,0.00020898,2]
[321761277,1712503837633,-3346.27830818,0.00020898,2]
[321761278,1712503837646,-1003.36040016,0.00020898,2]
[321761279,1712503837657,-1997.0672,0.00020898,2]
[321761280,1712503837737,-0.00027211,0.00020898,2]
[321761281,1712503837851,-1028.77109517,0.00020898,2]
[321761282,1712503837864,-1396.6,0.00020898,2]
[321761283,1712503837876,-51367.69481786,0.00020898,2]
[321761284,1712503837958,-419.6410628,0.00020898,2]
[321761285,1712503837970,-421138.70853069,0.00020898,2]
[321761286,1712503837981,-8616.7578183,0.00020898,2]
[321761287,1712503837992,-363.18982677,0.00020898,2]
[321761288,1712503838004,-206820.61851023,0.00020898,2]
[321761293,1712503838077,-144.06783878,0.00020898,2]
[321761294,1712503838104,-9360.89596054,0.00020898,2]
[321761295,1712503838115,-766.29818179,0.00020898,2]
[321761296,1712503838127,-12247.92308358,0.00020898,2]
[321761297,1712503838138,-260.46,0.00020898,2]
[321761307,1712503839830,-2790.74023994,0.00020798,2]
[321761317,1712503842820,-7.12582883,0.00020798,2]
[321761318,1712503842830,-3760.94359282,0.00020898,2]
[321761319,1712503842842,-1656.17096277,0.00020898,2]
[321761320,1712503842854,-5136.92981182,0.00020898,2]
[321761338,1712503843415,-9001.3256268,0.00020898,2]
[321761342,1712503843437,-6.25910507,0.00020898,2]
[321761346,1712503843463,-2621.48764299,0.00020898,2]
[321761354,1712503843532,-2890.0,0.00020898,2]
[321761356,1712503843543,-6974.4,0.00020898,2]
[321761360,1712503843563,-4447.26167707,0.00020898,2]
[321761363,1712503843584,-33263.33488796,0.00020898,2]
[321761365,1712503843596,-7796.33334812,0.00020898,2]
[321761367,1712503843608,-6001.85542693,0.00020898,2]
[321761370,1712503843620,-4202.91398161,0.00020898,2]
[321761446,1712503845680,-1727.40285487,0.00020815,2]
[321761447,1712503845804,-1070.4632139,0.00020815,2]
[321761448,1712503845817,-620.37920587,0.00020897,2]
[321761449,1712503845827,-584.84552738,0.00020897,2]
[321761450,1712503845837,-144352.19757436,0.00020898,2]
[321761451,1712503845898,-3653.00253243,0.00020898,2]
[321761452,1712503846335,-17334.41990883,0.00020898,2]
[321761453,1712503846347,-938.333715,0.00020898,2]
[321761455,1712503910785,2431.5363,0.00019169,2]
[321761456,1712503944313,3541.10600196,0.00019169,2]
[321761457,1712504110513,-500.0,0.00021918,7]
[321761458,1712504110540,-151.0,0.00021918,7]
[321761459,1712504110563,-152.236073,0.00021918,7]
[321761460,1712504110586,-151.472399,0.00021918,7]
[321761461,1712504110767,-151.0,0.00021918,7]
[321761462,1712504110795,-151.90688,0.00021918,7]
[321761463,1712504110820,-152.063462,0.00021918,7]
[321761464,1712504110844,-507.381823,0.00021918,7]
[321761465,1712504110869,-507.381823,0.00021918,7]
[321761466,1712504110893,-151.0,0.00021918,7]
[321761467,1712504110920,-151.0,0.0002198,7]
[321761468,1712504110943,-152.518406,0.0002198,7]
[321761469,1712504110966,-151.0,0.0002198,7]
[321761470,1712504110990,-226.715721,0.0002198,7]
[321761471,1712504111014,-226.715721,0.0002198,7]
[321761472,1712504111037,-151.0,0.0002198,7]
[321761473,1712504111063,-151.0,0.0002198,7]
[321761474,1712504111087,-151.0,0.0002198,7]
[321761475,1712504111111,-151.0,0.0002198,7]
[321761476,1712504111135,-151.0,0.0002198,7]
[321761477,1712504111159,-276.045435,0.0002198,7]
[321761478,1712504111184,-276.045435,0.0002198,7]
[321761479,1712504111208,-151.0,0.0002198,7]
[321761480,1712504111233,-158.658842,0.0002198,7]
[321761481,1712504111257,-158.658842,0.0002198,7]
[321761482,1712504111282,-507.505533,0.0002198,7]
[321761483,1712504111306,-507.505533,0.0002198,7]
[321761484,1712504111331,-259.032053,0.0002198,7]
[321761485,1712504111355,-151.0,0.0002198,7]
[321761486,1712504111379,-153.118198,0.0002198,7]
[321761487,1712504111405,-151.0,0.0002198,7]
[321761488,1712504111429,-151.0,0.0002198,7]
[321761489,1712504111452,-151.0,0.0002198,7]
[321761490,1712504111477,-181.200971,0.0002198,7]
[321761491,1712504111501,-181.200971,0.0002198,7]
[321761492,1712504111525,-151.0,0.0002198,7]
[321761493,1712504111549,-151.0,0.0002198,7]
[321761494,1712504111573,-151.0,0.0002198,7]
[321761495,1712504111614,-151.0,0.0002198,7]
[321761496,1712504111658,-274.000327,0.0002198,7]
[321761497,1712504111700,-151.0,0.0002198,7]
[321761498,1712504111743,-151.0,0.0002198,7]
[321761499,1712504111789,-151.0,0.0002198,7]
[321761500,1712504111835,-151.0,0.0002198,7]
[321761501,1712504111875,-151.0,0.0002198,7]
[321761502,1712504111919,-151.0,0.0002198,7]
[321761503,1712504111957,-233.97868,0.0002198,7]
[321761504,1712504111996,-233.97868,0.0002198,7]
[321761505,1712504112035,-151.0,0.0002198,7]
[321761506,1712504112074,-151.0,0.0002198,7]
[321761507,1712504112114,-151.0,0.0002198,7]
[321761508,1712504112153,-151.0,0.0002198,7]
[321761509,1712504112199,-151.0,0.0002198,7]
[321761510,1712504112263,-507.381823,0.0002198,7]
[321761511,1712504112320,-507.381823,0.0002198,7]
[321761512,1712504112370,-151.0,0.0002198,7]
[321761513,1712504112410,-183.1972618,0.00021999,10]
[321761514,1712504112449,-268.216541,0.00022,7]
[321761515,1712504112488,-151.0,0.00022,7]
[321761516,1712504112526,-226.715721,0.00022,7]
[321761517,1712504112567,-226.715721,0.00022,7]
[321761518,1712504112610,-151.0,0.00022,7]
[321761519,1712504112652,-151.0,0.00022,7]
[321761520,1712504112693,-151.0,0.00022,7]
[321761521,1712504112735,-151.0,0.00022,7]
[321761522,1712504112777,-188.470972,0.00022,7]
[321761523,1712504112820,-276.045435,0.00022,7]
[321761524,1712504112863,-276.045435,0.00022,7]
[321761525,1712504112893,-151.0,0.00022,7]
[321761526,1712504112920,-158.658842,0.00022,7]
[321761527,1712504112945,-158.658842,0.00022,7]
[321761528,1712504112972,-507.505533,0.00022,7]
[321761529,1712504113379,-507.505533,0.00022,7]
[321761530,1712504113412,-174.673713,0.00022,7]
[321761531,1712504113439,-151.0,0.00022,7]
[321761532,1712504113466,-151.0,0.00022,7]
[321761533,1712504113493,-151.0,0.00022,7]
[321761534,1712504113521,-181.200971,0.00022,7]
[321761535,1712504113548,-181.200971,0.00022,7]
[321761536,1712504113575,-151.0,0.00022,7]
[321761537,1712504113601,-151.0,0.00022,7]
[321761538,1712504113628,-151.0,0.00022,7]
[321761539,1712504113656,-245.892199,0.00022,7]
[321761540,1712504113682,-151.0,0.00022,7]
[321761541,1712504113707,-151.0,0.00022,7]
[321761542,1712504113732,-151.0,0.00022,7]
[321761543,1712504113757,-151.0,0.00022,7]
[321761544,1712504113783,-151.0,0.00022,7]
[321761545,1712504113810,-151.0,0.00022,7]
[321761546,1712504113833,-233.97868,0.00022,7]
[321761547,1712504113862,-233.97868,0.00022,7]
[321761548,1712504113886,-151.0,0.00022,7]
[321761549,1712504113914,-157.16879,0.00022,7]
[321761550,1712504113937,-151.0,0.00022,7]
[321761551,1712504113963,-151.0,0.00022,7]
[321761552,1712504113988,-151.0,0.00022,7]
[321761553,1712504114012,-151.0,0.00022,7]
[321761554,1712504114036,-507.381823,0.00022,7]
[321761555,1712504114060,-507.381823,0.00022,7]
[321761556,1712504114084,-201.871256,0.00022,7]
[321761557,1712504114166,151.0,0.00021918,7]
[321761558,1712504114226,151.0,0.0002198,7]
[321761559,1712504114314,151.0,0.00022,7]
[321761560,1712504117782,151.0,0.0002198,7]
[321761561,1712504119190,254.805714,0.0002198,7]
[321761562,1712504120367,254.805714,0.00022,7]
[321761563,1712504121888,-151.0,0.000225,7]
[321761564,1712504121914,-151.0,0.000225,7]
[321761565,1712504121939,-151.0,0.000225,7]
[321761566,1712504121964,-181.200971,0.000225,7]
[321761567,1712504121988,-181.200971,0.000225,7]
[321761568,1712504122013,-151.0,0.000225,7]
[321761569,1712504122038,-151.0,0.000225,7]
[321761570,1712504122063,-151.0,0.000225,7]
[321761571,1712504122088,-151.0,0.000225,7]
[321761572,1712504122113,-151.0,0.000225,7]
[321761573,1712504122137,-151.0,0.000225,7]
[321761574,1712504122164,-205.298226,0.000225,7]
[321761575,1712504122190,-233.97868,0.000225,7]
[321761576,1712504122215,-233.97868,0.000225,7]
[321761577,1712504122240,-151.0,0.000225,7]
[321761578,1712504122265,-151.0,0.000225,7]
[321761579,1712504122291,-262.302079,0.000225,7]
[321761580,1712504122315,-151.0,0.000225,7]
[321761581,1712504122340,-151.0,0.000225,7]
[321761582,1712504122365,-507.381823,0.000225,7]
[321761583,1712504122390,-507.381823,0.000225,7]
[321761584,1712504122416,-151.0,0.000225,7]
[321761585,1712504122440,-254.805714,0.000225,7]
[321761586,1712504125836,254.805714,0.0002198,7]
[321761587,1712504126202,254.805714,0.00022,7]
[321761588,1712504126494,254.805714,0.000225,7]
[321761589,1712504133789,314.82,0.00017376,2]
[321761590,1712504134347,151.0,0.0002198,7]
[321761591,1712504134689,282.319773,0.00022,7]
[321761592,1712504149472,154.682306,0.0002198,7]
[321761593,1712504149503,193.304982,0.0002198,7]
[321761594,1712504149778,193.304982,0.00022,7]
[321761595,1712504150640,193.304982,0.000225,7]
[321761596,1712504156356,193.304982,0.0002198,7]
[321761597,1712504156651,193.304982,0.00022,7]
[321761598,1712504157056,193.304982,0.000225,7]
[321761599,1712504181677,151.0,0.0002198,7]
[321761600,1712504181954,151.0,0.00022,7]
[321761601,1712504182479,151.0,0.000225,7]
[321761602,1712504189497,151.0,0.00021918,7]
[321761603,1712504189834,196.623857,0.00022,7]
[321761604,1712504259068,304.429094,0.00021918,7]
[321761605,1712504259291,304.429094,0.00022,7]
[321761606,1712504259603,304.429094,0.000225,7]
[321761607,1712504261913,151.0,0.00021918,7]
[321761608,1712504262195,153.681258,0.00022,7]
[321761609,1712504263054,304.429094,0.00021918,7]
[321761610,1712504263380,304.429094,0.00022,7]
[321761611,1712504263706,304.429094,0.000225,7]
[321761612,1712504272664,151.0,0.00021918,7]
[321761613,1712504273031,151.0,0.00022,7]
[321761614,1712504273348,151.0,0.000225,7]
[321761615,1712504286264,151.0,0.00021918,7]
[321761616,1712504286426,220.836348,0.00021918,7]
[321761617,1712504286625,151.0,0.00022,7]
[321761618,1712504286747,220.836348,0.00022,7]
[321761619,1712504286936,151.0,0.000225,7]
[321761620,1712504287113,220.836348,0.000225,7]
[321761621,1712504288940,151.0,0.00021918,7]
[321761622,1712504289625,151.0,0.00022,7]
[321761623,1712504289703,151.0,0.00021918,7]
[321761624,1712504289755,151.0,0.000225,7]
[321761625,1712504289827,273.541476,0.00022,7]
[321761626,1712504290079,220.836348,0.00021918,7]
[321761627,1712504290438,220.836348,0.00022,7]
[321761628,1712504290749,220.836348,0.000225,7]
[321761629,1712504295144,151.0,0.00021918,7]
[321761630,1712504295456,165.146659,0.00022,7]
[321761631,1712504331939,151.0,0.00021918,7]
[321761632,1712504332108,151.0,0.00022,7]
[321761633,1712504332359,151.0,0.000225,7]
[321761634,1712504346646,406.004426,0.00021918,7]
[321761635,1712504347554,406.004426,0.00022,7]
[321761636,1712504349558,406.004426,0.000225,7]
[321761637,1712504352918,406.004426,0.00021918,7]
[321761638,1712504355197,406.004426,0.00022,7]
[321761639,1712504355531,406.004426,0.000225,7]
[321761640,1712504368590,1750.0,0.00019,3]
[321761641,1712504392574,151.0,0.00021918,7]
[321761642,1712504392913,151.0,0.00022,7]
[321761643,1712504393297,151.0,0.000225,7]
[321761644,1712504397991,151.0,0.00021918,7]
[321761645,1712504398449,151.0,0.00022,7]
[321761646,1712504398725,151.0,0.000225,7]
[321761647,1712504401658,151.0,0.00021918,7]
[321761648,1712504402005,271.813596,0.00022,7]
[321761649,1712504438743,213.100365,0.00021918,7]
[321761650,1712504438989,213.100365,0.00022,7]
[321761651,1712504439327,213.100365,0.000225,7]
[321761652,1712504442315,213.100365,0.00021918,7]
[321761653,1712504442458,151.0,0.00021918,7]
[321761654,1712504442667,151.0,0.00022,7]
[321761655,1712504442700,213.100365,0.00022,7]
[321761656,1712504443109,213.100365,0.000225,7]
[321761657,1712504448831,220.053679,0.00021918,7]
[321761658,1712504453677,282.455892,0.00021918,7]
[321761659,1712504455601,151.0,0.00021918,7]
[321761660,1712504457534,151.0,0.00022,7]
[321761661,1712504457804,225.345934,0.000225,7]
[321761662,1712504515060,151.0,0.00021918,7]
[321761663,1712504515409,151.0,0.00022,7]
[321761664,1712504515766,213.429543,0.000225,7]
[321761665,1712504552708,207.24,0.00021918,7]
[321761666,1712504563314,-600.0,0.00018645,2]
[321761667,1712504580618,163.785076,0.00021918,7]
[321761668,1712504580912,163.785076,0.00022,7]
[321761669,1712504581282,163.785076,0.000225,7]
[321761670,1712504581703,163.785076,0.000225,7]
[321761671,1712504582312,151.0,0.00021918,7]
[321761672,1712504582704,151.0,0.00022,7]
[321761673,1712504583644,151.0,0.000225,7]
[321761674,1712504584127,163.785076,0.00021918,7]
[321761675,1712504584316,151.0,0.000225,7]
[321761676,1712504584514,163.785076,0.00022,7]
[321761677,1712504585447,163.785076,0.000225,7]
[321761678,1712504585564,163.785076,0.000225,7]
[321761679,1712504588627,151.0,0.00021918,7]
[321761680,1712504605235,299.07,0.00016811,2]
[321761681,1712504618275,151.0,0.00021918,7]
[321761682,1712504618654,151.0,0.00022,7]
[321761683,1712504618942,151.0,0.000225,7]
[321761684,1712504619223,151.0,0.000225,7]
[321761685,1712504622939,151.0,0.00021918,7]
[321761686,1712504623220,151.0,0.00022,7]
[321761687,1712504623388,151.0,0.00021918,7]
[321761688,1712504623493,151.0,0.000225,7]
[321761689,1712504623650,151.0,0.00022,7]
[321761690,1712504623766,151.0,0.000225,7]
[321761691,1712504624097,151.0,0.000225,7]
[321761692,1712504624437,151.0,0.000225,7]
[321761693,1712504643082,171.16,0.00016712,2]
[321761694,1712504643387,951.63079177,0.00017713,2]
[321761695,1712504647665,156.62444705,0.00017249,2]
[321761696,1712504648969,170.10477579,5e-05,2]
[321761697,1712504649595,363.28555268,0.00015333,2]
[321761698,1712504652104,155.0,0.00017249,2]
[321761699,1712504653648,260.18428435,0.00017249,2]
[321761700,1712504665397,1270.96014836,0.00018351,2]
[321761701,1712504665417,64.74985164,0.00018351,2]
[321761702,1712504670740,156.55076502,0.00017249,2]
[321761703,1712504688780,382.09,0.00018447,2]
[321761704,1712504700791,864.40202653,0.00018447,2]
[321761705,1712504701266,407.55601987,0.00018447,2]
[321761706,1712504703031,20123.74639395,0.00018447,2]
[321761707,1712504705407,19629.70453164,0.00018447,2]
[321761708,1712504706398,42494.85911985,0.00018447,2]
[321761709,1712504706664,940.88907787,0.00018447,2]
[321761710,1712504707443,7482.64740264,0.00018447,2]
[321761711,1712504707479,292.06930916,0.00018447,2]
[321761712,1712504707838,951.63079177,0.00017525,2]
[321761713,1712504708971,364.93561022,0.00018447,2]
[321761714,1712504709613,1992.78422911,0.00018447,2]
[321761715,1712504709732,155.0,0.00018447,2]
[321761716,1712504710116,155.0,0.00018447,2]
[321761717,1712504711681,296.15770931,0.00018447,2]
[321761718,1712504711773,360.4075085,0.00018447,2]
[321761719,1712504712198,1133.12028447,0.00018447,2]
[321761720,1712504712859,1033.9663475,0.00018447,2]
[321761721,1712504713558,323.14134565,0.00018447,2]
[321761722,1712504714037,6870.67649419,0.0001844,2]
[321761723,1712504714803,318.84310969,0.00018447,2]
[321761724,1712504715027,216.40415346,0.00018447,2]
[321761725,1712504715922,24624.97877041,0.00018447,2]
[321761726,1712504718406,155.0,0.00018447,2]
[321761727,1712504720605,712.36,0.00017958,2]
[321761728,1712504720806,864.40202653,0.00018447,2]
[321761729,1712504721457,7482.64740264,0.00018447,2]
[321761730,1712504721737,156.00915475,0.00018447,2]
[321761731,1712504721849,951.63079177,0.00017525,2]
[321761732,1712504722460,23900.0,0.00017958,2]
[321761733,1712504722506,42494.85911985,0.00018447,2]
[321761734,1712504723489,5850.27799002,0.00018447,2]
[321761735,1712504723990,19629.70453164,0.00018447,2]
[321761736,1712504724037,1992.78422911,0.00018447,2]
[321761737,1712504725659,323.14134565,0.00018447,2]
[321761738,1712504725775,360.4075085,0.00018447,2]
[321761739,1712504726670,940.88907787,0.00018447,2]
[321761740,1712504726917,364.93561022,0.00018447,2]
[321761741,1712504727115,200.27908551,0.00018447,2]
[321761742,1712504728232,1033.9663475,0.00018447,2]
[321761743,1712504729447,155.30252456,0.00017249,2]
[321761744,1712504729479,292.06930916,0.00018447,2]
[321761745,1712504731288,468.4,0.00017938,2]
[321761746,1712504731677,423.07595938,0.00018447,2]
[321761747,1712504732357,1133.12028447,0.00018447,2]
[321761748,1712504732828,320.82639063,0.00018447,2]
[321761749,1712504734459,24624.97877041,0.00018447,2]
[321761750,1712504737404,185.62257021,0.00018447,2]
[321761751,1712504738793,864.40202653,0.00018447,2]
[321761752,1712504739858,951.63079177,0.00017525,2]
[321761753,1712504740403,42494.85911985,0.00018447,2]
[321761754,1712504741454,6116.92350079,0.00018447,2]
[321761755,1712504741634,1038.24058336,0.00018447,2]
[321761756,1712504743416,19629.70453164,0.00018447,2]
[321761757,1712504745565,323.14134565,0.00018447,2]
[321761758,1712504745777,340.85191982,0.00018447,2]
[321761759,1712504746562,502.13,0.00017932,2]
[321761760,1712504746676,940.88907787,0.00018447,2]
[321761761,1712504747480,292.06930916,0.00018447,2]
[321761762,1712504748925,364.93561022,0.00018447,2]
[321761763,1712504749119,151.0,0.00021918,7]
[321761764,1712504749417,151.0,0.00022,7]
[321761765,1712504749968,24624.97877041,0.00018447,2]
[321761766,1712504750233,589.51168241,0.00018447,2]
[321761767,1712504752186,1133.12028447,0.00018447,2]
[321761768,1712504754077,151.0,0.000225,7]
[321761769,1712504754398,151.0,0.000225,7]
[321761770,1712504755462,864.40202653,0.00018447,2]
[321761771,1712504756420,42494.85911985,0.00018447,2]
[321761772,1712504756912,151.0,0.00021918,7]
[321761773,1712504757422,290.269757,0.00022,7]
[321761774,1712504757624,1038.24058336,0.00018447,2]
[321761775,1712504761561,323.14134565,0.00018447,2]
[321761776,1712504761858,975.50051134,0.00017525,2]
[321761777,1712504762671,940.88907787,0.00018447,2]
[321761778,1712504765998,7165.96144994,0.00018447,2]
[321761779,1712504766052,292.06930916,0.00018447,2]
[321761780,1712504766933,362.67039968,0.00018447,2]
[321761781,1712504767964,24624.97877041,0.00018447,2]
[321761782,1712504772193,1133.12028447,0.00018447,2]
[321761783,1712504772799,864.40202653,0.00018447,2]
[321761784,1712504774407,42494.85911985,0.00018447,2]
[321761785,1712504775618,1038.24058336,0.00018447,2]
[321761787,1712504781567,323.14134565,0.00018447,2]
[321761788,1712504783484,292.06930916,0.00018447,2]
[321761789,1712504785955,4384.78934519,0.00017959,2]
[321761790,1712504785978,842.05065481,0.00017959,2]
[321761791,1712504786019,24624.97877041,0.00018447,2]
[321761792,1712504787041,940.88907787,0.00018447,2]
[321761793,1712504790409,26044.42224753,0.00018447,2]
[321761794,1712504792199,1133.12028447,0.00018447,2]
[321761795,1712504792808,570.52665826,0.00018447,2]
[321761796,1712504798247,250.49887898,0.00018447,2]